Cogmind - Beta 11 *** ADVENTURER MODE // 2022.03.20 @ 21:50:26 Player: User Result: Destroyed by S-10 Pest with Light Assault Rifle Performance ------------- Evolutions (1) 500 Regions Visited (3) 600 Robots Destroyed (10) 50 Value Destroyed (257) 257 Prototype IDs (2) 40 Alien Tech Used (0) 0 Bonus (0) 0 TOTAL SCORE: 1447 Bonus ------- None Cogmind --------- Core Integrity 0/400 Matter 300/300 Energy 99/100 System Corruption 0% Temperature Cool (0) Movement Core (100) Ox1 Location -9/Mines Parts ------- > --- POWER (2) -------- (None) > --- PROPULSION (2) --- (None) > --- UTILITY (3) ------ Small Storage Unit Power Shielding > --- WEAPON (2) ------- (None) > --- INVENTORY (8) ---- (None) Peak State ------------ > --- POWER ------------ Ion Engine Light Ion Engine > --- PROPULSION ------- Aluminum Leg Aluminum Leg > --- UTILITY ---------- Small Storage Unit > --- WEAPON ----------- Improved Medium Laser Improved Assault Rifle > --- INVENTORY -------- Aluminum Leg Aluminum Leg Power Shielding Assault Rifle [Rating: 11] Favorites ----------- Power Light Ion Engine Engine Light Ion Engine Propulsion Aluminum Leg Leg Aluminum Leg Utility Small Storage Unit Storage Small Storage Unit Protection Power Shielding Weapon Assault Rifle Energy Gun Small Laser Ballistic Gun Assault Rifle Build | -11 -10 -9 -9 ------- Run | Scr Mat Mat Min Slots Evolved 2 | . . 2 . Power 1 | . . 1 . Propulsion . | . . . . Utility 1 | . . 1 . Weapon . | . . . . Parts Attached 9 | . . 9 . Power 1 | . . 1 . Engine 1 | . . 1 . Core . | . . . . Reactor . | . . . . Propulsion 2 | . . 2 . Treads . | . . . . Leg 2 | . . 2 . Wheel . | . . . . Hover . | . . . . Flight . | . . . . Utility 1 | . . 1 . Device . | . . . . Storage . | . . . . Processor . | . . . . Hackware . | . . . . Protection 1 | . . 1 . Artifact . | . . . . Weapon 5 | . . 5 . Energy Gun 1 | . . 1 . Energy Cannon . | . . . . Ballistic Gun 4 | . . 4 . Ballistic Cannon . | . . . . Launcher . | . . . . Special Weapon . | . . . . Impact Weapon . | . . . . Slashing Weapon . | . . . . Piercing Weapon . | . . . . Special Melee Weapon . | . . . . Unidentified Prototypes 2 | . . 2 . Parts Lost 10 | . . 9 1 Power 2 | . . 2 . Propulsion 4 | . . 3 1 Utility . | . . . . Weapon 4 | . . 4 . Highest Loss Streak 10 | . . 9 10 To Critical Strikes 1 | . . 1 . Average Slot Usage (%) 67 | . 85 62 25 Engine 10 | . 14 10 . Leg 21 | . 28 19 3 Storage 12 | . 14 11 11 Protection 2 | . . 3 11 Energy Gun 7 | . 14 4 . Ballistic Gun 13 | . 14 14 . Naked Turns . | . . . . Heaviest Build 19 | 11 11 19 6 Greatest Support 20 | 20 20 20 10 Greatest Overweight (x) 1 | . . 1 1 Average Overweight (x) . | . . . . Largest Inventory Capacity 8 | 8 8 8 8 Average Capacity 8 | 8 8 8 8 Most Carried 7 | 6 7 5 . Average Carried 3 | 6 5 3 . Final Capacity 8 | 8 8 8 8 Final Carried 6 | 6 5 . . Class Distribution -------------------- 100% | Mutant Dominant Class ---------------- Mutant | -10/Materials Mutant | -9/Materials Mutant | -9/Mines Resources | -11 -10 -9 -9 ----------- Run | Scr Mat Mat Min Matter Collected 350 | 200 21 129 . Remotely . | . . . . Salvage Created 446 | . 96 350 . Parts 18 | . 5 13 . Haulers Intercepted 2 | . 1 1 . Recyclers Shooed 1 | . . 1 . Parts Field Recycled . | . . . . Retrieved Matter . | . . . . Parts Self-Destructed . | . . . . Prevented . | . . . . Kills | -11 -10 -9 -9 ------- Run | Scr Mat Mat Min Combat Hostiles Destroyed 7 | . 1 6 . Guns 6 | . 1 5 . AOE 1 | . . 1 . Classes Destroyed 5 | . 2 3 . Hauler 2 | . 1 1 . Recycler 1 | . . 1 . Swarmer 1 | . . 1 . Grunt 3 | . 1 2 . Sentry 3 | . . 3 . Best Kill Streak 4 | . 2 4 . Combat Bots Only 4 | . 1 4 . Max Kills in Single Turn 1 | . 1 1 . Gunslinging . | . . . . Exploded 1 | . . 1 . Melee . | . . . . Uniques/NPCs Destroyed . | . . . . Combat | -11 -10 -9 -9 -------- Run | Scr Mat Mat Min Damage Taken 1357 | . 33 1180 144 Core 410 | . 9 282 119 Absorbed by Shields . | . . . . Redirected to Shielding 11 | . . 11 . Core Remaining (%) 98 | 100 96 . . Volleys Fired 39 | . 7 32 . Largest 2 | . 2 2 . Hottest 79 | . 60 79 . Shots Fired 74 | . 14 60 . Gun 74 | . 14 60 . Cannon . | . . . . Launcher . | . . . . Special . | . . . . Kinetic 55 | . 7 48 . Thermal 19 | . 7 12 . Explosive . | . . . . Electromagnetic . | . . . . Robot Hit Streak 15 | . 6 15 . Robot Miss Streak 3 | . 1 3 . Penetration Max . | . . . . Secondary Targets 1 | . . 1 . Max Gunslinging Chain 1 | . . 1 . Shots Hit Robots 59 | . 10 49 . Core Hits 20 | . 4 13 3 Critical Kills . | . . . . Critical Parts Destroyed 1 | . . 1 . Critical Strikes 1 | . . 1 . Destroy 1 | . . 1 . Melee Attacks . | . . . . Impact . | . . . . Slashing . | . . . . Piercing . | . . . . Sneak Attacks . | . . . . Combat Hostiles . | . . . . Follow-up Attacks . | . . . . Damage Inflicted 845 | . 126 698 21 Guns 824 | . 126 698 . Cannons . | . . . . Explosions . | . . . . Melee . | . . . . Ramming 21 | . . . 21 Kinetic 651 | . 85 566 . Thermal 173 | . 41 132 . Explosive . | . . . . Electromagnetic . | . . . . Impact . | . . . . Slashing . | . . . . Piercing . | . . . . Highest Corruption . | . . . . Average Corruption . | . . . . Corruption Purged . | . . . . Corruption Blocked . | . . . . Overload Shots . | . . . . Overflow Damage . | . . . . Projectiles . | . . . . Explosions . | . . . . Melee . | . . . . Knockbacks . | . . . . Impact . | . . . . Kinetic . | . . . . Secondary . | . . . . Self-Inflicted Damage 8 | . . . 8 Shots . | . . . . Rammed 12 | . . . 12 Targets Rammed 12 | . . . 12 Kicked . | . . . . Crushed . | . . . . Highest Temperature 229 | . 18 229 . Average Temperature 65 | . 16 80 . Received Heat Transfer 621 | . 24 597 . Effects 2 | . . 2 . Interference 2 | . . 2 . Siege Activations . | . . . . Robots Corrupted . | . . . . Combat Hostiles . | . . . . Parts Fried . | . . . . Impact Corruptions . | . . . . Robots Melted . | . . . . Combat Hostiles . | . . . . Parts Melted . | . . . . Heat Transferred 396 | . 100 296 . Parts Sabotaged . | . . . . Parts Stolen . | . . . . Parts Stripped . | . . . . Power Chain Reactions . | . . . . Missiles Intercepted . | . . . . Alert | -11 -10 -9 -9 ------- Run | Scr Mat Mat Min Peak Influence 174 | . 27 174 67 Initial 52 | . . 9 52 Average 47 | . 19 64 57 Maximum Alert Level . | . . . . Low Security (%) 100 | 100 100 100 100 Level 1 . | . . . . Level 2 . | . . . . Level 3 . | . . . . Level 4 . | . . . . Level 5 . | . . . . High Security . | . . . . Max Security . | . . . . Squads Dispatched 1 | . . 1 . Investigation . | . . . . Extermination . | . . . . Reinforcement 1 | . . 1 . Assault . | . . . . Garrison . | . . . . Intercept . | . . . . Searches Triggered . | . . . . Construction Impeded . | . . . . Haulers Reinforced . | . . . . Active Scanning Responses . | . . . . Cargo Convoy Interrupts . | . . . . Stealth | -11 -10 -9 -9 --------- Run | Scr Mat Mat Min Distress Signals 1 | . . 1 . Communications Jammed . | . . . . Distress Signals . | . . . . Times Spotted 21 | . 1 16 4 Peak Tracking Total 8 | . 1 8 4 Tactical Retreats 2 | . . 2 . Traps | -11 -10 -9 -9 ------- Run | Scr Mat Mat Min Traps Triggered . | . . . . Indirectly . | . . . . Trap Hack Attempts . | . . . . Triggered . | . . . . Disarmed . | . . . . Reprogrammed . | . . . . Reused . | . . . . Traps Extracted . | . . . . Installed . | . . . . Triggered . | . . . . Machines | -11 -10 -9 -9 ---------- Run | Scr Mat Mat Min Machines Disabled . | . . . . Max in Single Turn . | . . . . Machines Sabotaged . | . . . . Garrisons Compromised . | . . . . Overloaded Fab Kills . | . . . . Hacking | -11 -10 -9 -9 --------- Run | Scr Mat Mat Min Machines Accessed 1 | . 1 . . Terminals 1 | . 1 . . Fabricators . | . . . . Repair Stations . | . . . . Recycling Units . | . . . . Scanalyzers . | . . . . Garrison Access . | . . . . Total Hacks 1 | . 1 . . Successful 1 | . 1 . . Failed . | . . . . Catastrophic . | . . . . Database Lockouts . | . . . . Manual . | . . . . Terminals 1 | . 1 . . Fabricators . | . . . . Repair Stations . | . . . . Recycling Units . | . . . . Scanalyzers . | . . . . Garrison Access . | . . . . Terminal Hacks 1 | . 1 . . Locate Traps 1 | . 1 . . Fabricator Hacks . | . . . . Repair Station Hacks . | . . . . Recycling Unit Hacks . | . . . . Scanalyzer . | . . . . Garrison Access Hacks . | . . . . Unauthorized Hacks . | . . . . Terminals . | . . . . Fabricators . | . . . . Repair Stations . | . . . . Recycling Units . | . . . . Scanalyzers . | . . . . Garrison Access . | . . . . Data Cores Recovered . | . . . . Used . | . . . . Hacking Detections . | . . . . Full Trace Events . | . . . . Feedback Events . | . . . . Feedback Blocked . | . . . . Robot Schematics Acquired . | . . . . Robots Built . | . . . . Authchips . | . . . . Time . | . . . . Total Robot Build Rating . | . . . . Part Schematics Acquired . | . . . . Parts Built . | . . . . Authchips . | . . . . Time . | . . . . Total Part Build Rating . | . . . . Parts Repaired . | . . . . Time . | . . . . Parts Recycled . | . . . . Recycled Matter . | . . . . Retrieved Matter . | . . . . Retrieved Components . | . . . . Parts Scanalyzed . | . . . . Part Schematics Acquired . | . . . . Parts Damaged . | . . . . Bothacking | -11 -10 -9 -9 ------------ Run | Scr Mat Mat Min Used RIF Installer . | . . . . Robots Hacked . | . . . . Non-combat . | . . . . Combat . | . . . . Robot Hacks Applied . | . . . . Relay Couplers Released . | . . . . Fabnet Peak Effective % . | . . . . Robots Rewired . | . . . . Allies Hacked . | . . . . Hacks Repelled . | . . . . Allies | -11 -10 -9 -9 -------- Run | Scr Mat Mat Min Total Allies . | . . . . Largest Group . | . . . . Highest-Rated Group . | . . . . Highest-Rated Ally . | . . . . Total Orders . | . . . . Ally Attacks . | . . . . Total Damage . | . . . . Kills . | . . . . Allies Corrupted . | . . . . Allies Melted . | . . . . Intel | -11 -10 -9 -9 ------- Run | Scr Mat Mat Min Robot Analysis Total . | . . . . Derelict Logs Recovered 1 | . . . 1 Drone Launches . | . . . . Drone Recoveries . | . . . . Exploration | -11 -10 -9 -9 ------------- Run | Scr Mat Mat Min Turns Passed 461 | 12 154 272 23 Spaces Moved 267 | 11 107 138 11 Core 9 | . . . 9 Treads . | . . . . Legs 258 | 11 107 138 2 Wheels . | . . . . Hover . | . . . . Flight . | . . . . Fastest Speed 100 | 120 120 120 100 Average Speed 119 | 120 120 120 103 Slowest Speed 190 | 120 120 190 120 Overloaded Moves . | . . . . Propulsion Burnouts . | . . . . Robots Hopped . | . . . . Cave-ins Triggered . | . . . . Exploration Rate (%) 11 | 3 17 18 8 Regions Visited 3 Branch Regions 1 Pre-discovered Areas . | . . . . Known Exits Taken . | . . . . Unknown Exits Taken 3 | 1 1 1 . Scrap Searched . | . . . . Spaces Dug . | . . . . Terrain Destroyed . | . . . . Melee . | . . . . Projectile . | . . . . AOE . | . . . . Terrain Rammed . | . . . . Walls Destroyed . | . . . . Machines Disabled . | . . . . Actions | -11 -10 -9 -9 --------- Run | Scr Mat Mat Min Total 338 | 10 120 185 23 Wait 2 | . . 2 . Move 264 | 10 106 137 11 Hop . | . . . . Pick Up 6 | . 3 3 . Fast Attach . | . . . . Attach 7 | . . 7 . Detach . | . . . . Swap 2 | . . 2 . Drop 6 | . 4 2 . Fire 39 | . 7 32 . Melee . | . . . . Ram 12 | . . . 12 Kick . | . . . . Crush . | . . . . Escape Stasis . | . . . . Rewire . | . . . . Trap . | . . . . Miscellaneous . | . . . . Route ------- -11/Scrapyard -10/Materials -9/Materials -9/Mines History --------- Turn | Location | Event 1 | -11/Scrapyard | Discovered new exit (range 3) 13 | -11/Scrapyard | Entered Materials 152 | -10/Materials | Discovered new exit (range 3) 167 | -10/Materials | Entered another Materials area 167 | -9/Materials | Evolved 2 slots: Power x1, Utility x1 311 | -9/Materials | Build established: Mutant 361 | -9/Materials | Discovered new exit (range 11) 393 | -9/Materials | Core integrity fell below 50% 439 | -9/Materials | Entered Mines 445 | -9/Mines | Learned Materials non-interactive machine intel 452 | -9/Mines | Core integrity fell below 20% 462 | -9/Mines | Destroyed by S-10 Pest with Light Assault Rifle Last Messages --------------- 00421_ U-05 Engineer lays Concrete. 00421_ K-01 Serf collects debris. 00423_ U-05 Engineer lays Concrete. 00423_ U-05 Engineer builds a Wall. 00424_ U-05 Engineer lays Concrete. 00424_ K-01 Serf collects debris. 00425_ U-05 Engineer destroyed. 00426_ R-06 Scavenger collects Aluminum Leg. 00427_ U-05 Engineer builds a Wall. 00427_ K-01 Serf collects debris. 00435_ U-05 Engineer builds a Wall. LOCATION=UNKNOWN GOAL=ESCAPE Something is scanning the area. 00442_ Aluminum Leg destroyed. 00445_ Acquired derelict log, extracted data. Data stored: Materials non-interactive machine intel. 00448_ Slammed into S-10 Pest. 00448_ Destabilizing: Core damaged (-12). 00449_ Slammed into S-10 Pest. Map ----- +----------------------------------------------------+ | ??????????????????????????????????????????????? | | ??????????????????????????????????????????????? | | ??????????????????????????????????????????????? | | ??????????????????????????????????????????????? | | ??????????????????????????????????????????????? | | ??????????????????????????????????????????????? | | ??????????????????????????????????????????????? | | ??????????????????????????????????????????????? | | ??????????????????????????????????????????????? | | ??????????????????????????????????????????????? | | ??????????????????????????????????????????????? | | ??????????????????????????????????????????????? | | ??????????????????????????????????????????????? | | ??????????????????????????????????????????????? | | ??????????????????????????????????????????????? | | ??????????????????????????????????????????????? | | ??????????????????????????????????????????????? | | ??????????????????????????????????????????????? | | ??????????????????????????????????????????????? | | ??????????????????????????????????????????????? | | ??????????????????????#???????????????????????? | | ?????????????????????? #####??????????????????? | | ??????????????????????? #??????????????????? | | ???????????????????????? #??????????????????? | | ????????????????????????# #??????????????????? | | ????????????????????????#@ #??????????????????? | | ????????????????????????# #??????????????????? | | ????????????????????????# ##?????????????????? | | ????????????????????????#s #??#############??? | | ????????????????????????# #??# ???? | | ????????????????????????###s#??# ????? | | ??????????????????????????#s#### """ """ ???? | | ??????????????????????????# """ """ ???? | | ??????????????????????????# #### """ """ #??? | | ??????????????????????????# #??# #??? | | ??????????????????????????# #??# #??? | | ??????????????????????????# #??# #??? | | ??????????????????????????# #??#############??? | | ??????????????????????????# #?????????????????? | | ?????????????????????????? #?????????????????? | | ?????????????????????????? ?????????????????? | | ?????????????????????????? ?????????????????? | | ?????????????????????????? ?????????????????? | | ?????????????????????????? #?????????????????? | | ?????????????????????????? ??????????????????? | | ?????????????????????????? ??????????????????? | | ?????????????????????????? ??????????????????? | | ?????????????????????????? #??????????????????? | | ??????????????????????????#???????????????????? | | ??????????????????????????????????????????????? | +----------------------------------------------------+ Best States ------------- Heat Dissipation 28 Energy Generation 15 Energy Capacity 275 Matter Stores 300 Matter Capacity 300 Sight Range 16 Terrain Scan Density 10 Resistance: KI 20 Resistance: TH 20 Resistance: EX 20 Resistance: EM 20 Resistance: I 20 Resistance: S 20 Resistance: P 20 Power Shielding 33 Evasion (%) 55 Offensive Hacking 10 Item Schematics ----------------- None Robot Schematics ------------------ None Fabricated ------------ Nothing Alien Tech Used ----------------- None Achievements -------------- None Challenges ------------ None Game ------ Seed EfficiencyGravmagCutter Manual? 0 Play Time 00:07:09 Cumulative 81.5 hours Start 2022.03.20 @ 21:42:30 End 2022.03.20 @ 21:50:26 Sessions 1 Manual Loads 0 Difficulty Adventurer Special Mode None Game No. 94 Rogue 83 Adventurer 11 Explorer 0 Win Type - Total 2 Types 1/1/0/0/0/0/0/0/0 Lore% 47 Gallery% 56 Achievement% 48 Wizard Run 0 Options --------- ASCII 0 Keyboard 0 Movement Mouse Keybinds 0 Fullscreen 2 Font 20/Terminus Map View 66x50 Tactical HUD 1 Map Filters NONE Filters NONE Steam 1 RUN: 4114d111-2248-47ae-980c-78cdf1d219db